fUSD/lending_fUSD_20250214
["ID","MTS","AMOUNT","RATE_DAILY","PERIOD"]
[353100345,1739562652545,-3075.69,0.00013698,2]
[353100346,1739562652555,-1304.83,0.00013698,2]
[353100347,1739562652565,-1304.83,0.00013698,2]
[353100348,1739562652575,-500.0,0.00013698,2]
[353100349,1739562652584,-1304.83,0.00013698,2]
[353100350,1739562652594,-1304.83,0.00013698,2]
[353100351,1739562652604,-500.0,0.00013698,2]
[353100352,1739562652613,-1304.83,0.00013698,2]
[353100353,1739562652623,-502.26581422,0.00013698,2]
[353100354,1739562652633,-1304.83,0.00013698,2]
[353100355,1739562652643,-826.11,0.00013698,2]
[353100356,1739562652654,-500.66288214,0.00013698,2]
[353100357,1739562652663,-2556.09,0.00013698,2]
[353100358,1739562652890,-1008.69,0.00013698,2]
[353100359,1739562652902,-500.0,0.00013698,2]
[353100360,1739562652914,-500.0,0.00013698,2]
[353100361,1739562652924,-618.12,0.00013698,2]
[353100362,1739562652934,-502.48,0.00013698,2]
[353100363,1739562652944,-500.0,0.00013698,2]
[353100364,1739562652967,-500.0,0.00013698,2]
[353100365,1739562652979,-2435.08,0.00013698,2]
[353100366,1739562652990,-3183.3,0.00013698,2]
[353100367,1739562653001,-500.0,0.00013698,2]
[353100368,1739562653011,-638.704479,0.00013698,2]
[353100369,1739562653021,-1525.96,0.00013698,2]
[353100370,1739562653031,-504.31812444,0.00013698,2]
[353100371,1739562653042,-2994.89,0.00013698,2]
[353100372,1739562653052,-851.83,0.00013698,2]
[353100373,1739562653062,-521.26,0.00013698,2]
[353100374,1739562653073,-500.0,0.00013698,2]
[353100375,1739562653083,-504.66888536,0.00013698,2]
[353100376,1739562653094,-167.546303,0.00013698,2]
[353100377,1739562653104,-1261.02,0.00013698,2]
[353100378,1739562653115,-500.0,0.00013698,2]
[353100379,1739562653125,-500.0,0.00013698,2]
[353100380,1739562653137,-167.546303,0.00013698,2]
[353100381,1739562653147,-852.54,0.00013698,2]
[353100382,1739562653157,-500.0,0.00013698,2]
[353100383,1739562653167,-167.546303,0.00013698,2]
[353100384,1739562653178,-1938.31,0.00013698,2]
[353100385,1739562653189,-1886.79,0.00013698,2]
[353100386,1739562653198,-5719.28,0.00013698,2]
[353100387,1739562653209,-1800.33,0.00013698,2]
[353100388,1739562653219,-500.0,0.00013698,2]
[353100389,1739562653230,-1932.14,0.00013698,2]
[353100390,1739562653240,-167.546303,0.00013698,2]
[353100391,1739562653250,-8359.64,0.00013698,2]
[353100392,1739562653260,-167.546303,0.00013698,2]
[353100393,1739562653271,-500.0,0.00013698,2]
[353100394,1739562653281,-167.546303,0.00013698,2]
[353100395,1739562653291,-500.0,0.00013698,2]
[353100396,1739562653302,-526.71131812,0.00013698,2]
[353100397,1739562653312,-500.0,0.00013698,2]
[353100398,1739562653322,-3758.35,0.00013698,2]
[353100399,1739562653332,-500.0,0.00013698,2]
[353100400,1739562653342,-500.0,0.00013698,2]
[353100401,1739562653352,-503.12398702,0.00013698,2]
[353100402,1739562653363,-502.78669634,0.00013698,2]
[353100403,1739562653375,-500.0,0.00013698,2]
[353100404,1739562653388,-500.0,0.00013698,2]
[353100405,1739562653399,-500.0,0.00013698,2]
[353100406,1739562653409,-3383.96,0.00013698,2]
[353100407,1739562653419,-5753.09,0.00013698,2]
[353100408,1739562653429,-3791.52,0.00013698,2]
[353100409,1739562653439,-500.3734263,0.00013698,2]
[353100410,1739562653450,-151.0,0.00013698,2]
[353100411,1739562653465,-640.221254,0.00013698,2]
[353100412,1739562653477,-151.0,0.00013698,2]
[353100413,1739562653487,-151.0,0.00013698,2]
[353100414,1739562653497,-500.0,0.00013698,2]
[353100415,1739562653507,-500.0,0.00013698,2]
[353100416,1739562653518,-500.0,0.00013698,2]
[353100417,1739562653528,-1866.41,0.00013698,2]
[353100418,1739562653539,-3983.16,0.00013698,2]
[353100419,1739562653550,-500.0,0.00013698,2]
[353100420,1739562653560,-500.0,0.00013698,2]
[353100421,1739562653571,-932.16,0.00013698,2]
[353100422,1739562653582,-1155.08,0.00013698,2]
[353100423,1739562653592,-500.0,0.00013698,2]
[353100424,1739562653603,-880.56,0.00013698,2]
[353100425,1739562653614,-500.0,0.00013698,2]
[353100426,1739562653624,-899.41,0.00013698,2]
[353100427,1739562653635,-500.0,0.00013698,2]
[353100428,1739562653645,-501.6720909,0.00013698,2]
[353100429,1739562653656,-502.32290569,0.00013698,2]
[353100430,1739562653667,-500.0,0.00013698,2]
[353100431,1739562653677,-500.0,0.00013698,2]
[353100432,1739562653687,-500.0,0.00013698,2]
[353100433,1739562653698,-500.0,0.00013698,2]
[353100434,1739562653708,-500.87490883,0.00013698,2]
[353100435,1739562653719,-540.38785208,0.00013698,2]
[353100436,1739562653729,-2087.59,0.00013698,2]
[353100437,1739562653738,-833.47,0.00013698,2]
[353100438,1739562653749,-500.0,0.00013698,2]
[353100439,1739562653760,-500.0,0.00013698,2]
[353100440,1739562653770,-500.0,0.00013698,2]
[353100441,1739562653781,-510.56714648,0.00013698,2]
[353100442,1739562653791,-519.47675149,0.00013698,2]
[353100443,1739562653802,-500.0,0.00013698,2]
[353100444,1739562653812,-2400.01,0.00013698,2]
[353100445,1739562653823,-1282.94,0.00013698,2]
[353100446,1739562653833,-745.06,0.00013698,2]
[353100447,1739562653844,-500.0,0.00013698,2]
[353100448,1739562653855,-3164.27,0.00013698,2]
[353100449,1739562653866,-1244.81,0.00013698,2]
[353100450,1739562653877,-500.0,0.00013698,2]
[353100451,1739562653890,-4216.9,0.00013698,2]
[353100452,1739562653902,-500.0,0.00013698,2]
[353100453,1739562653917,-500.0,0.00013698,2]
[353100454,1739562653936,-633.667826,0.00013698,2]
[353100455,1739562653947,-500.0,0.00013698,2]
[353100456,1739562653958,-500.0,0.00013698,2]
[353100457,1739562653974,-1905.75,0.00013698,2]
[353100458,1739562653985,-500.0,0.00013698,2]
[353100459,1739562653996,-3370.7,0.00013698,2]
[353100460,1739562654007,-500.0,0.00013698,2]
[353100461,1739562654016,-3479.82,0.00013698,2]
[353100462,1739562654027,-1587.72,0.00013698,2]
[353100463,1739562654038,-4729.1,0.00013698,2]
[353100464,1739562654048,-500.0,0.00013698,2]
[353100465,1739562654059,-300.0,0.00013698,2]
[353100466,1739562654070,-507.02527729,0.00013698,2]
[353100467,1739562654080,-3454.6,0.00013698,2]
[353100468,1739562654094,-5416.92,0.00013698,2]
[353100469,1739562654104,-896.53,0.00013698,2]
[353100470,1739562654115,-500.0,0.00013698,2]
[353100471,1739562654125,-500.0,0.00013698,2]
[353100472,1739562654137,-426.91613278,0.00013698,2]
[353100473,1739562654148,-500.0,0.00013698,2]
[353100474,1739562654159,-2883.92,0.00013698,2]
[353100475,1739562654170,-587.4,0.00013698,2]
[353100476,1739562654189,-500.0,0.00013698,2]
[353100477,1739562654202,-3235.73,0.00013698,2]
[353100478,1739562654212,-500.0,0.00013698,2]
[353100479,1739562654222,-500.0,0.00013698,2]
[353100480,1739562654233,-1886.03,0.00013698,2]
[353100481,1739562654243,-500.0,0.00013698,2]
[353100482,1739562654254,-2189.15,0.00013698,2]
[353100483,1739562654265,-500.0,0.00013698,2]
[353100484,1739562654275,-500.0,0.00013698,2]
[353100485,1739562654286,-764.6,0.00013698,2]
[353100486,1739562654296,-500.0,0.00013698,2]
[353100487,1739562654306,-10308.07,0.00013698,2]
[353100488,1739562654317,-1957.29,0.00013698,2]
[353100489,1739562654327,-500.0,0.00013698,2]
[353100490,1739562654337,-500.0,0.00013698,2]
[353100491,1739562654348,-12071.63,0.00013698,2]
[353100492,1739562654359,-2058.9,0.00013698,2]
[353100493,1739562654370,-500.0,0.00013698,2]
[353100494,1739562654380,-3854.31,0.00013698,2]
[353100495,1739562654392,-500.0,0.00013698,2]
[353100496,1739562654402,-621.769237,0.00013698,2]
[353100497,1739562654413,-4235.18,0.00013698,2]
[353100498,1739562654423,-533.397745,0.00013698,2]
[353100499,1739562654433,-500.0,0.00013698,2]
[353100500,1739562654444,-500.0,0.00013698,2]
[353100501,1739562654455,-2176.03,0.00013698,2]
[353100502,1739562654465,-3232.79,0.00013698,2]
[353100503,1739562654475,-500.0,0.00013698,2]
[353100504,1739562654489,-500.0,0.00013698,2]
[353100505,1739562654499,-500.0,0.00013698,2]
[353100506,1739562654509,-500.0,0.00013698,2]
[353100507,1739562654520,-2581.46,0.00013698,2]
[353100508,1739562654530,-501.39623219,0.00013698,2]
[353100509,1739562654540,-1126.74,0.00013698,2]
[353100510,1739562654550,-500.0,0.00013698,2]
[353100511,1739562654561,-946.68,0.00013698,2]
[353100512,1739562654571,-500.0,0.00013698,2]
[353100513,1739562654582,-503.390919,0.00013698,2]
[353100514,1739562654593,-500.0,0.00013698,2]
[353100515,1739562654604,-1018.58,0.00013698,2]
[353100516,1739562654616,-500.0,0.00013698,2]
[353100517,1739562654628,-5560.18,0.00013698,2]
[353100518,1739562654640,-500.0,0.00013698,2]
[353100519,1739562654651,-500.0,0.00013698,2]
[353100520,1739562654661,-501.95419027,0.00013698,2]
[353100521,1739562654671,-2021.38,0.00013698,2]
[353100522,1739562654682,-500.0,0.00013698,2]
[353100523,1739562654692,-2775.88,0.00013698,2]
[353100524,1739562654702,-500.0,0.00013698,2]
[353100525,1739562654712,-500.0,0.00013698,2]
[353100526,1739562654722,-500.0,0.00013698,2]
[353100527,1739562654732,-500.0,0.00013698,2]
[353100528,1739562654742,-500.0,0.00013698,2]
[353100529,1739562654753,-1051.32,0.00013698,2]
[353100530,1739562654764,-545.85,0.00013698,2]
[353100531,1739562654774,-1561.87,0.00013698,2]
[353100532,1739562654785,-500.0,0.00013698,2]
[353100533,1739562654795,-500.0,0.00013698,2]
[353100534,1739562654806,-3509.61,0.00013698,2]
[353100535,1739562654816,-500.0,0.00013698,2]
[353100536,1739562654826,-500.0,0.00013698,2]
[353100537,1739562654836,-2695.26,0.00013698,2]
[353100538,1739562654846,-503.29684021,0.00013698,2]
[353100539,1739562654856,-505.23390995,0.00013698,2]
[353100540,1739562654867,-500.0,0.00013698,2]
[353100541,1739562654877,-500.0,0.00013698,2]
[353100542,1739562654888,-500.0,0.00013698,2]
[353100543,1739562654898,-500.0,0.00013698,2]
[353100544,1739562654910,-500.0,0.00013698,2]
[353100545,1739562654921,-500.0,0.00013698,2]
[353100546,1739562654932,-923.15,0.00013698,2]
[353100547,1739562654943,-1148.04,0.00013698,2]
[353100548,1739562654953,-3161.79,0.00013698,2]
[353100549,1739562654964,-500.0,0.00013698,2]
[353100550,1739562654974,-500.0,0.00013698,2]
[353100551,1739562654986,-500.0,0.00013698,2]
[353100552,1739562654998,-500.0,0.00013698,2]
[353100553,1739562655010,-500.0,0.00013698,2]
[353100554,1739562655020,-3689.39,0.00013698,2]
[353100555,1739562655031,-500.0,0.00013698,2]
[353100556,1739562655041,-1314.39,0.00013698,2]
[353100557,1739562655051,-500.0,0.00013698,2]
[353100558,1739562655061,-500.0,0.00013698,2]
[353100559,1739562655071,-2838.24,0.00013698,2]
[353100560,1739562655081,-500.0,0.00013698,2]
[353100561,1739562655091,-151.0,0.00013698,2]
[353100562,1739562655101,-500.0,0.00013698,2]
[353100563,1739562655111,-151.0,0.00013698,2]
[353100564,1739562655123,-151.0,0.00013698,2]
[353100565,1739562655133,-3268.54,0.00013698,2]
[353100566,1739562655143,-836.24,0.00013698,2]
[353100567,1739562655153,-2673.48,0.00013698,2]
[353100568,1739562655164,-151.0,0.00013698,2]
[353100569,1739562655182,-500.0,0.00013698,2]
[353100570,1739562655197,-151.0,0.00013698,2]
[353100571,1739562655207,-500.0,0.00013698,2]
[353100572,1739562655217,-500.0,0.00013698,2]
[353100573,1739562655227,-151.0,0.00013698,2]
[353100574,1739562655238,-1313.16,0.00013698,2]
[353100575,1739562655248,-500.0,0.00013698,2]
[353100576,1739562655258,-500.0,0.00013698,2]
[353100577,1739562655269,-1433.79,0.00013698,2]
[353100578,1739562655280,-4393.84,0.00013698,2]
[353100579,1739562655291,-2254.12,0.00013698,2]
[353100580,1739562655301,-500.0,0.00013698,2]
[353100581,1739562655311,-514.50745633,0.00013698,2]
[353100582,1739562655321,-610.191311,0.00013698,2]
[353100583,1739562655331,-500.0,0.00013698,2]
[353100584,1739562655341,-5503.64,0.00013698,2]
[353100585,1739562655351,-500.0,0.00013698,2]
[353100586,1739562655362,-1247.79,0.00013698,2]
[353100587,1739562655373,-500.0,0.00013698,2]
[353100588,1739562655384,-500.0,0.00013698,2]
[353100589,1739562655394,-635.45,0.00013698,2]
[353100590,1739562655405,-746.09,0.00013698,2]
[353100591,1739562655416,-2132.78,0.00013698,2]
[353100592,1739562655427,-500.0,0.00013698,2]
[353100593,1739562655436,-6401.76,0.00013698,2]
[353100594,1739562655448,-500.0,0.00013698,2]
[353100595,1739562655465,-500.0,0.00013698,2]
[353100596,1739562655475,-3513.72,0.00013698,2]
[353100597,1739562655486,-512.53727473,0.00013698,2]
[353100598,1739562655496,-500.0,0.00013698,2]
[353100599,1739562655506,-1359.07,0.00013698,2]
[353100600,1739562655517,-500.0,0.00013698,2]
[353100601,1739562655529,-543.33,0.00013698,2]
[353100602,1739562655539,-500.0,0.00013698,2]
[353100603,1739562655549,-500.0,0.00013698,2]
[353100604,1739562655559,-2305.47,0.00013698,2]
[353100605,1739562655569,-1112.97,0.00013698,2]
[353100606,1739562655579,-500.0,0.00013698,2]
[353100607,1739562655588,-4264.94,0.00013698,2]
[353100608,1739562655598,-2529.36,0.00013698,2]
[353100609,1739562655608,-2278.35,0.00013698,2]
[353100610,1739562655618,-500.0,0.00013698,2]
[353100611,1739562655629,-9206.02,0.00013698,2]
[353100612,1739562655640,-500.0,0.00013698,2]
[353100613,1739562655650,-500.0,0.00013698,2]
[353100614,1739562655660,-500.0,0.00013698,2]
[353100615,1739562655676,-4074.19,0.00013698,2]
[353100616,1739562655687,-500.0,0.00013698,2]
[353100617,1739562655696,-500.0,0.00013698,2]
[353100618,1739562655706,-500.0,0.00013698,2]
[353100619,1739562655981,-500.52065263,0.00013698,2]
[353100620,1739562655994,-500.0,0.00013698,2]
[353100621,1739562656004,-1175.17,0.00013698,2]
[353100622,1739562656014,-500.0,0.00013698,2]
[353100623,1739562656024,-500.0,0.00013698,2]
[353100624,1739562656035,-500.0,0.00013698,2]
[353100625,1739562656045,-3373.59,0.00013698,2]
[353100626,1739562656056,-500.0,0.00013698,2]
[353100627,1739562656065,-500.0,0.00013698,2]
[353100628,1739562656075,-800.34,0.00013698,2]
[353100629,1739562656085,-500.0,0.00013698,2]
[353100630,1739562656095,-1135.84,0.00013698,2]
[353100631,1739562656105,-500.0,0.00013698,2]
[353100632,1739562656115,-601.910201,0.00013698,2]
[353100633,1739562656125,-500.0,0.00013698,2]
[353100634,1739562656136,-720.69,0.00013698,2]
[353100635,1739562656146,-500.0,0.00013698,2]
[353100636,1739562656156,-698.82,0.00013698,2]
[353100637,1739562656166,-518.05,0.00013698,2]
[353100638,1739562656176,-1232.26,0.00013698,2]
[353100639,1739562656187,-500.0,0.00013698,2]
[353100640,1739562656199,-1636.4,0.00013698,2]
[353100641,1739562656209,-1013.64,0.00013698,2]
[353100642,1739562656219,-500.0,0.00013698,2]
[353100643,1739562656229,-420.48217039,0.00013698,2]
[353100644,1739562656240,-500.0,0.00013698,2]
[353100645,1739562656250,-505.96017384,0.00013698,2]
[353100646,1739562656261,-500.0,0.00013698,2]
[353100647,1739562656271,-500.0,0.00013698,2]
[353100648,1739562656281,-531.3,0.00013698,2]
[353100649,1739562656291,-531.3,0.00013698,2]
[353100650,1739562656302,-500.0,0.00013698,2]
[353100651,1739562656312,-531.3,0.00013698,2]
[353100652,1739562656323,-580.54,0.00013698,2]
[353100653,1739562656333,-531.3,0.00013698,2]
[353100654,1739562656343,-2594.71,0.00013698,2]
[353100655,1739562656353,-531.3,0.00013698,2]
[353100656,1739562656363,-501.78879494,0.00013698,2]
[353100657,1739562656372,-531.3,0.00013698,2]
[353100658,1739562656382,-531.3,0.00013698,2]
[353100659,1739562656392,-2778.43,0.00013698,2]
[353100660,1739562656402,-531.3,0.00013698,2]
[353100661,1739562656411,-531.3,0.00013698,2]
[353100662,1739562656422,-500.0,0.00013698,2]
[353100663,1739562656434,-531.3,0.00013698,2]
[353100664,1739562656444,-500.0,0.00013698,2]
[353100665,1739562656454,-531.3,0.00013698,2]
[353100666,1739562656463,-2088.88,0.00013698,2]
[353100667,1739562656473,-1341.64,0.00013698,2]
[353100668,1739562656482,-500.0,0.00013698,2]
[353100669,1739562656492,-500.0,0.00013698,2]
[353100670,1739562656502,-2016.81,0.00013698,2]
[353100671,1739562656512,-500.0,0.00013698,2]
[353100672,1739562656522,-500.0,0.00013698,2]
[353100673,1739562656532,-500.0,0.00013698,2]
[353100674,1739562656541,-500.0,0.00013698,2]
[353100675,1739562656551,-500.0,0.00013698,2]
[353100676,1739562656560,-598.626061,0.00013698,2]
[353100677,1739562656570,-500.0,0.00013699,2]
[353100678,1739562656580,-500.0,0.00013699,2]
[353100679,1739562656589,-500.0,0.00013699,2]
[353100680,1739562656599,-500.0,0.00013699,2]
[353100681,1739562656609,-500.0,0.00013699,2]
[353100682,1739562656620,-500.0,0.00013699,2]
[353100683,1739562656630,-500.0,0.00013699,2]
[353100684,1739562656641,-168.05,0.00013699,2]
[353100685,1739562656650,-10041.23,0.00013699,2]
[353100686,1739562656660,-9616.7,0.00013699,2]
[353100687,1739562656669,-49289.9,0.00013699,2]
[353100688,1739562656678,-200.0,0.00013699,2]
[353100689,1739562656688,-500.0,0.00013699,2]
[353100690,1739562656698,-3717.28,0.000137,2]
[353100691,1739562656708,-3717.28,0.000137,2]
[353100692,1739562656718,-150.0,0.00013715,2]
[353100693,1739562656729,-150.0,0.00013722,2]
[353100694,1739562656739,-540.0,0.00013724,2]
[353100695,1739562656749,-1563.0,0.00013724,2]
[353100696,1739562656759,-1112.51675988,0.00013742,2]
[353100697,1739562656768,-540.0,0.00013752,2]
[353100698,1739562656778,-1563.0,0.00013752,2]
[353100699,1739562656788,-150.0,0.00013759,2]
[353100700,1739562656798,-559.06066968,0.00013763,2]
[353100701,1739562656807,-1304.83,0.00013778,2]
[353100702,1739562656817,-300.0,0.00013779,2]
[353100703,1739562656827,-300.0,0.00013779,2]
[353100704,1739562656837,-300.0,0.00013779,2]
[353100705,1739562656847,-680.62728129,0.00013779,2]
[353100706,1739562656857,-666.0,0.00013779,2]
[353100707,1739562656867,-300.0,0.00013779,2]
[353100708,1739562656877,-666.0,0.00013779,2]
[353100709,1739562656889,-300.0,0.00013779,2]
[353100710,1739562656899,-300.0,0.00013779,2]
[353100711,1739562656912,-300.0,0.00013779,2]
[353100712,1739562656922,-500.0,0.00013779,2]
[353100713,1739562656933,-500.0,0.00013779,2]
[353100714,1739562656943,-500.0,0.00013779,2]
[353100715,1739562656953,-500.0,0.00013779,2]
[353100716,1739562656963,-1363.87,0.00013779,2]
[353100717,1739562656973,-1363.87,0.00013779,2]
[353100718,1739562656984,-1363.87,0.00013779,2]
[353100719,1739562656995,-1363.87,0.00013779,2]
[353100720,1739562657004,-597.03,0.00013779,2]
[353100721,1739562657014,-597.03,0.00013779,2]
[353100722,1739562657024,-597.03,0.00013779,2]
[353100723,1739562657034,-597.03,0.00013779,2]
[353100724,1739562657044,-500.0,0.00013779,2]
[353100725,1739562657053,-500.0,0.00013779,2]
[353100726,1739562657063,-500.0,0.00013779,2]
[353100727,1739562657072,-500.0,0.00013779,2]
[353100728,1739562657082,-1304.83,0.00013779,2]
[353100729,1739562657092,-1304.83,0.00013779,2]
[353100730,1739562657103,-1304.83,0.00013779,2]
[353100731,1739562657112,-531.3,0.00013779,2]
[353100732,1739562657121,-531.3,0.00013779,2]
[353100733,1739562657131,-531.3,0.00013779,2]
[353100734,1739562657142,-531.3,0.00013779,2]
[353100735,1739562657151,-540.0,0.00013779,2]
[353100736,1739562657161,-1563.0,0.00013779,2]
[353100737,1739562657171,-1642.851728,0.0001378,2]
[353100738,1739562657181,-309.58751965,0.0001378,2]
[353100739,1739562657191,-500.0,0.0001378,2]
[353100740,1739562657202,-500.0,0.0001378,2]
[353100741,1739562657212,-500.0,0.0001378,2]
[353100742,1739562657223,-287.37536548,0.0001378,2]
[353100743,1739562657235,-500.0,0.0001378,2]
[353100744,1739562657245,-609.82704432,0.0001378,2]
[353100745,1739562657255,-500.0,0.0001378,2]
[353100746,1739562657265,-500.0,0.0001378,2]
[353100747,1739562657275,-500.0,0.0001378,2]
[353100748,1739562657284,-627.41561824,0.0001378,2]
[353100749,1739562657294,-503.12715141,0.0001378,2]
[353100750,1739562657304,-500.0,0.0001378,2]
[353100751,1739562657314,-281.8217487,0.0001378,2]
[353100752,1739562657324,-629.56413556,0.0001378,2]
[353100753,1739562657334,-500.0,0.0001378,2]
[353100754,1739562657345,-500.0,0.0001378,2]
[353100755,1739562657355,-501.17631326,0.0001378,2]
[353100756,1739562657365,-500.0,0.0001378,2]
[353100757,1739562657375,-502.17829508,0.0001378,2]
[353100758,1739562657385,-500.0,0.0001378,2]
[353100759,1739562657395,-502.05978959,0.0001378,2]
[353100760,1739562657404,-251.59890034,0.0001378,2]
[353100761,1739562657414,-500.0,0.0001378,2]
[353100762,1739562657423,-501.42797976,0.0001378,2]
[353100763,1739562657433,-507.32469662,0.0001378,2]
[353100764,1739562657443,-500.0,0.0001378,2]
[353100765,1739562657454,-502.50476535,0.0001378,2]
[353100766,1739562657463,-501.62636949,0.0001378,2]
[353100767,1739562657473,-502.67155954,0.0001378,2]
[353100768,1739562657484,-397.22367292,0.0001378,2]
[353100769,1739562657494,-256.9584354,0.0001378,2]
[353100770,1739562657503,-502.05432121,0.0001378,2]
[353100771,1739562657513,-507.20555923,0.0001378,2]
[353100772,1739562657523,-513.32,0.0001378,2]
[353100773,1739562657533,-526.34521817,0.0001378,2]
[353100774,1739562657543,-303.85891557,0.0001378,2]
[353100775,1739562657554,-161.2525989,0.0001378,2]
[353100776,1739562657564,-778.74,0.0001378,2]
[353100777,1739562657573,-500.0,0.0001378,2]
[353100778,1739562657583,-370.97602672,0.0001378,2]
[353100779,1739562657597,-500.0,0.0001378,2]
[353100780,1739562657607,-500.0,0.0001378,2]
[353100781,1739562657616,-500.0,0.0001378,2]
[353100782,1739562657626,-676.39,0.0001378,2]
[353100783,1739562657636,-500.0,0.0001378,2]
[353100784,1739562657646,-500.0,0.0001378,2]
[353100785,1739562657656,-576.1,0.0001378,2]
[353100786,1739562657665,-500.0,0.0001378,2]
[353100787,1739562657675,-500.0,0.0001378,2]
[353100788,1739562657685,-500.7875476,0.0001378,2]
[353100789,1739562657695,-500.0,0.0001378,2]
[353100790,1739562657705,-500.0,0.0001378,2]
[353100791,1739562657715,-500.0,0.0001378,2]
[353100792,1739562657724,-500.0,0.0001378,2]
[353100793,1739562657735,-500.0,0.0001378,2]
[353100794,1739562657744,-500.0,0.0001378,2]
[353100795,1739562657755,-500.0,0.0001378,2]
[353100796,1739562657764,-500.0,0.0001378,2]
[353100797,1739562657773,-500.0,0.0001378,2]
[353100798,1739562657783,-500.0,0.0001378,2]
[353100799,1739562657793,-631.01,0.0001378,2]
[353100800,1739562657803,-562.89,0.0001378,2]
[353100801,1739562657812,-500.0,0.0001378,2]
[353100802,1739562657823,-500.0,0.0001378,2]
[353100803,1739562657833,-502.70578472,0.0001378,2]
[353100804,1739562657842,-504.01746415,0.0001378,2]
[353100805,1739562657851,-506.48824565,0.0001378,2]
[353100806,1739562657861,-500.0,0.0001378,2]
[353100807,1739562657871,-500.0,0.0001378,2]
[353100808,1739562657881,-500.0,0.0001378,2]
[353100809,1739562657892,-500.0,0.0001378,2]
[353100810,1739562657902,-535.69,0.0001378,2]
[353100811,1739562657915,-500.0,0.0001378,2]
[353100812,1739562657925,-500.0,0.0001378,2]
[353100813,1739562657935,-500.0,0.0001378,2]
[353100814,1739562657945,-500.0,0.0001378,2]
[353100815,1739562657956,-501.64614476,0.0001378,2]
[353100816,1739562657967,-400.15819871,0.0001378,2]
[353100817,1739562657977,-500.0,0.0001378,2]
[353100818,1739562657987,-502.11028169,0.0001378,2]
[353100819,1739562657998,-500.0,0.0001378,2]
[353100820,1739562658009,-506.39409408,0.0001378,2]
[353100821,1739562658019,-500.0,0.0001378,2]
[353100822,1739562658028,-500.0,0.0001378,2]
[353100823,1739562658038,-503.79023991,0.0001378,2]
[353100824,1739562658048,-500.0,0.0001378,2]
[353100825,1739562658058,-500.0,0.0001378,2]
[353100826,1739562658067,-502.09649167,0.0001378,2]
[353100827,1739562658077,-500.0,0.0001378,2]
[353100828,1739562658086,-500.0,0.0001378,2]
[353100829,1739562658096,-500.0,0.0001378,2]
[353100830,1739562658106,-500.0,0.0001378,2]
[353100831,1739562658117,-500.0,0.0001378,2]
[353100832,1739562658126,-500.0,0.0001378,2]
[353100833,1739562658136,-500.0,0.0001378,2]
[353100834,1739562658145,-502.1488597,0.0001378,2]
[353100835,1739562658156,-500.0,0.0001378,2]
[353100836,1739562658166,-500.0,0.0001378,2]
[353100837,1739562658176,-500.0,0.0001378,2]
[353100838,1739562658186,-500.0,0.0001378,2]
[353100839,1739562658195,-1068.82,0.0001378,2]
[353100840,1739562658206,-500.0,0.0001378,2]
[353100841,1739562658217,-500.0,0.0001378,2]
[353100842,1739562658227,-950.13,0.0001378,2]
[353100843,1739562658237,-500.0,0.0001378,2]
[353100844,1739562658247,-500.0,0.0001378,2]